fUST/lending_fUST_20240911
["ID","MTS","AMOUNT","RATE_DAILY","PERIOD"]
[337719342,1725987088796,-500.0,0.00019179,2]
[337719343,1725987088807,-553.2,0.00019179,2]
[337719344,1725987088816,-848.19,0.00019179,2]
[337719345,1725987088826,-500.0,0.00019179,2]
[337719346,1725987088838,-882.16,0.00019179,2]
[337719347,1725987088849,-500.0,0.00019179,2]
[337719348,1725987088859,-500.0,0.00019179,2]
[337719349,1725987088869,-578.17,0.00019179,2]
[337719350,1725987088879,-841.44,0.00019179,2]
[337719351,1725987088891,-500.0,0.00019179,2]
[337719352,1725987088900,-642.34,0.00019179,2]
[337719353,1725987088910,-791.11,0.00019179,2]
[337719354,1725987088919,-500.0,0.00019179,2]
[337719355,1725987088928,-500.0,0.00019179,2]
[337719356,1725987088937,-1895.41,0.00019179,2]
[337719357,1725987088946,-500.0,0.00019179,2]
[337719358,1725987088956,-980.57,0.00019179,2]
[337719359,1725987088967,-500.0,0.00019179,2]
[337719360,1725987088976,-2400.44,0.00019179,2]
[337719361,1725987088986,-500.0,0.00019179,2]
[337719362,1725987088996,-1124.28,0.00019179,2]
[337719363,1725987089007,-672.56,0.00019179,2]
[337719364,1725987089020,-571.17,0.00019179,2]
[337719365,1725987089029,-500.0,0.00019179,2]
[337719366,1725987089039,-808.61,0.00019179,2]
[337719367,1725987089051,-500.0,0.00019179,2]
[337719368,1725987089061,-500.0,0.00019179,2]
[337719369,1725987089071,-1199.35,0.00019179,2]
[337719370,1725987089080,-500.0,0.00019179,2]
[337719371,1725987089091,-486.88491491,0.00019179,2]
[337719372,1725987089101,-1033.55,0.00019179,2]
[337719373,1725987089111,-1786.34,0.00019179,2]
[337719374,1725987089121,-500.0,0.00019179,2]
[337719375,1725987089131,-857.51,0.00019179,2]
[337719376,1725987089140,-500.0,0.00019179,2]
[337719377,1725987089150,-500.0,0.00019179,2]
[337719378,1725987089160,-500.0,0.00019179,2]
[337719379,1725987089170,-500.0,0.00019179,2]
[337719380,1725987089179,-500.0,0.00019179,2]
[337719381,1725987089189,-742.91,0.00019179,2]
[337719382,1725987089199,-606.58,0.00019179,2]
[337719383,1725987089208,-500.0,0.00019179,2]
[337719384,1725987089217,-679.35,0.00019179,2]
[337719385,1725987089227,-500.0,0.00019179,2]
[337719386,1725987089236,-500.0,0.00019179,2]
[337719387,1725987089246,-151.0,0.0001918,2]
[337719388,1725987089255,-151.0,0.0001918,2]
[337719389,1725987089264,-151.0,0.0001918,2]
[337719390,1725987089274,-500.0,0.00019181,2]
[337719391,1725987089284,-678.54,0.00019182,2]
[337719392,1725987089293,-844.705938,0.00019182,2]
[337719393,1725987089303,-844.705938,0.00019182,2]
[337719394,1725987089312,-1000.0,0.00019242,2]
[337719395,1725987089412,-465.00270832,0.00019385,2]
[337719396,1725987089431,-1047.18,0.0001945,2]
[337719397,1725987089441,-500.0,0.00019451,2]
[337719398,1725987089451,-553.54,0.00019451,2]
[337719399,1725987089460,-2363.4,0.00019451,2]
[337719400,1725987089470,-977.86,0.00019451,2]
[337719401,1725987089480,-1813.25,0.00019451,2]
[337719402,1725987089490,-1983.67,0.00019451,2]
[337719403,1725987089499,-585.68,0.00019451,2]
[337719404,1725987089508,-2056.03,0.00019451,2]
[337719405,1725987089519,-1041.82,0.00019451,2]
[337719406,1725987089529,-200.0,0.00019451,2]
[337719407,1725987089539,-500.0,0.00019451,2]
[337719408,1725987089549,-890.94,0.00019451,2]
[337719409,1725987089558,-500.0,0.00019451,2]
[337719410,1725987089568,-500.0,0.00019451,2]
[337719411,1725987089578,-2908.31,0.00019451,2]
[337719412,1725987089588,-570.37,0.00019451,2]
[337719413,1725987089598,-43984.4,0.00019451,2]
[337719414,1725987089608,-500.0,0.00019451,2]
[337719415,1725987089619,-2135.99,0.00019451,2]
[337719416,1725987089628,-3517.34,0.00019451,2]
[337719417,1725987089638,-539.11,0.00019451,2]
[337719418,1725987089648,-2575.2,0.00019451,2]
[337719419,1725987089658,-484.54740482,0.00019451,2]
[337719420,1725987089668,-7865.92,0.00019451,2]
[337719421,1725987089678,-500.0,0.00019451,2]
[337719422,1725987089688,-3508.18,0.00019451,2]
[337719423,1725987089697,-1299.19,0.00019451,2]
[337719424,1725987089707,-1213.25,0.00019451,2]
[337719425,1725987089717,-897.95,0.00019451,2]
[337719426,1725987089726,-2680.58,0.00019451,2]
[337719427,1725987089736,-500.0,0.00019451,2]
[337719428,1725987089746,-867.86,0.00019451,2]
[337719429,1725987089756,-539.4,0.00019451,2]
[337719430,1725987089765,-3969.43,0.00019451,2]
[337719431,1725987089774,-1187.95,0.00019451,2]
[337719432,1725987089784,-500.0,0.00019451,2]
[337719433,1725987089793,-8904.62,0.00019451,2]
[337719434,1725987089803,-500.0,0.00019451,2]
[337719435,1725987089813,-1301.09,0.00019451,2]
[337719436,1725987089822,-500.0,0.00019451,2]
[337719437,1725987089832,-1116.76,0.00019451,2]
[337719438,1725987089841,-2535.01,0.00019451,2]
[337719439,1725987089851,-1737.23,0.00019451,2]
[337719440,1725987089861,-500.0,0.00019451,2]
[337719441,1725987089871,-500.0,0.00019451,2]
[337719442,1725987089885,-1452.81,0.00019451,2]
[337719443,1725987089895,-500.0,0.00019451,2]
[337719444,1725987089905,-500.0,0.00019451,2]
[337719445,1725987089914,-500.0,0.00019451,2]
[337719446,1725987089923,-3779.0,0.00019451,2]
[337719447,1725987089933,-565.66,0.00019452,2]
[337719448,1725987089943,-920.25,0.00019452,2]
[337719449,1725987089953,-500.0,0.00019452,2]
[337719450,1725987089964,-500.0,0.00019452,2]
[337719451,1725987089975,-500.0,0.00019452,2]
[337719452,1725987089984,-500.0,0.00019452,2]
[337719453,1725987089994,-1099.81,0.00019452,2]
[337719454,1725987090003,-1604.71,0.00019452,2]
[337719455,1725987090012,-2210.6,0.00019452,2]
[337719456,1725987090022,-500.0,0.00019452,2]
[337719457,1725987090032,-1189.48,0.00019452,2]
[337719458,1725987090042,-530.75755542,0.00019452,2]
[337719459,1725987090052,-663.24,0.00019452,2]
[337719460,1725987090061,-1038.53,0.00019452,2]
[337719461,1725987090070,-1169.08,0.00019452,2]
[337719462,1725987090081,-505.5,0.00019452,2]
[337719463,1725987090092,-1822.14,0.00019452,2]
[337719464,1725987090102,-720.07,0.00019452,2]
[337719465,1725987090111,-2913.8,0.00019452,2]
[337719466,1725987090122,-1955.94,0.00019452,2]
[337719467,1725987090131,-742.92,0.00019452,2]
[337719468,1725987090141,-500.0,0.00019452,2]
[337719469,1725987090151,-609.62,0.00019452,2]
[337719470,1725987090160,-1713.89,0.00019452,2]
[337719471,1725987090170,-500.0,0.00019452,2]
[337719472,1725987090179,-971.86,0.00019452,2]
[337719473,1725987090189,-2284.58,0.00019452,2]
[337719474,1725987090199,-1021.87,0.00019452,2]
[337719475,1725987090210,-792.09,0.00019452,2]
[337719476,1725987090219,-1816.79,0.00019452,2]
[337719477,1725987090230,-500.0,0.00019452,2]
[337719478,1725987090239,-720.94,0.00019452,2]
[337719479,1725987090249,-753.23,0.00019452,2]
[337719480,1725987090258,-1933.6,0.00019452,2]
[337719481,1725987090268,-1008.22,0.00019452,2]
[337719482,1725987090278,-1583.17,0.00019452,2]
[337719483,1725987090288,-500.0,0.00019452,2]
[337719484,1725987090298,-500.0,0.00019452,2]
[337719485,1725987090308,-500.0,0.00019452,2]
[337719486,1725987090317,-9481.22,0.00019452,2]
[337719487,1725987090327,-1938.09,0.00019452,2]
[337719488,1725987090338,-1806.64,0.00019452,2]
[337719489,1725987090347,-589.44,0.00019452,2]
[337719490,1725987090357,-500.0,0.00019452,2]
[337719491,1725987090368,-1240.8,0.00019452,2]
[337719492,1725987090378,-946.63,0.00019452,2]
[337719493,1725987090389,-38864.62,0.00019452,2]
[337719494,1725987090398,-500.0,0.00019452,2]
[337719495,1725987090408,-2013.95,0.00019452,2]
[337719496,1725987090418,-2044.37,0.00019452,2]
[337719497,1725987090428,-53987.64,0.00019452,2]
[337719498,1725987090438,-500.0,0.00019452,2]
[337719499,1725987090447,-4713.36,0.00019452,2]
[337719500,1725987090457,-535.49,0.00019452,2]
[337719501,1725987090467,-500.0,0.00019452,2]
[337719502,1725987090478,-965.38,0.00019452,2]
[337719503,1725987090488,-806.04,0.00019452,2]
[337719504,1725987090498,-500.0,0.00019452,2]
[337719505,1725987090508,-500.0,0.00019452,2]
[337719506,1725987090517,-2582.53,0.00019452,2]
[337719507,1725987090530,-677.86,0.00019452,2]
[337719508,1725987090540,-232.30308894,0.00019452,2]
[337719509,1725987090550,-500.0,0.00019452,2]
[337719510,1725987090561,-771.86,0.00019452,2]
[337719511,1725987090570,-500.0,0.00019452,2]
[337719512,1725987090581,-1718.58,0.00019452,2]
[337719513,1725987090592,-1132.77,0.00019452,2]
[337719514,1725987090602,-2709.96,0.00019452,2]
[337719515,1725987090613,-652.93,0.00019452,2]
[337719516,1725987090624,-5158.88,0.00019452,2]
[337719517,1725987090634,-500.0,0.00019452,2]
[337719518,1725987090644,-1065.08,0.00019453,2]
[337719519,1725987090655,-500.0,0.00019453,2]
[337719520,1725987090665,-660.04,0.00019453,2]
[337719521,1725987090674,-500.0,0.00019453,2]
[337719522,1725987090684,-500.0,0.00019453,2]
[337719523,1725987090694,-1568.6,0.00019453,2]
[337719524,1725987090703,-792.17,0.00019453,2]
[337719525,1725987090713,-500.0,0.00019453,2]
[337719526,1725987090725,-904.46,0.00019453,2]
[337719527,1725987090735,-500.0,0.00019453,2]
[337719528,1725987090746,-625.22,0.00019453,2]
[337719529,1725987090756,-536.45,0.00019453,2]
[337719530,1725987090765,-500.0,0.00019453,2]
[337719531,1725987090775,-500.0,0.00019453,2]
[337719532,1725987090784,-502.6,0.00019453,2]
[337719533,1725987090794,-500.0,0.00019453,2]
[337719534,1725987090804,-1049.86,0.00019453,2]
[337719535,1725987090813,-1076.1,0.00019453,2]
[337719536,1725987090823,-500.0,0.00019453,2]
[337719537,1725987090833,-500.0,0.00019453,2]
[337719538,1725987090843,-500.0,0.00019453,2]
[337719539,1725987090852,-500.0,0.00019453,2]
[337719540,1725987090862,-165.13763454,0.00019453,2]
[337719541,1725987090871,-500.0,0.00019453,2]
[337719542,1725987090884,-629.08,0.00019453,2]
[337719543,1725987090895,-611.82337854,0.00019453,2]
[337719544,1725987090904,-712.42,0.00019453,2]
[337719545,1725987090914,-500.0,0.00019453,2]
[337719546,1725987090925,-500.0,0.00019453,2]
[337719547,1725987090937,-500.0,0.00019453,2]
[337719548,1725987090948,-500.0,0.00019453,2]
[337719549,1725987090957,-500.0,0.00019453,2]
[337719550,1725987090968,-852.74,0.00019453,2]
[337719551,1725987090979,-500.0,0.00019453,2]
[337719552,1725987090989,-500.0,0.00019453,2]
[337719553,1725987090998,-151.0,0.00019453,2]
[337719554,1725987091008,-800.96,0.00019453,2]
[337719555,1725987091018,-649.67,0.00019453,2]
[337719556,1725987091027,-417.24407248,0.00019453,2]
[337719557,1725987091037,-588.79,0.00019453,2]
[337719558,1725987091046,-1531.75,0.00019453,2]
[337719559,1725987091056,-677.0,0.00019453,2]
[337719560,1725987091066,-582.35,0.00019453,2]
[337719561,1725987091076,-1661.25,0.00019453,2]
[337719562,1725987091086,-570.74551364,0.00019453,2]
[337719563,1725987091095,-500.0,0.00019453,2]
[337719564,1725987091105,-151.0,0.00019453,2]
[337719565,1725987091115,-902.12,0.00019453,2]
[337719566,1725987091124,-500.0,0.00019453,2]
[337719567,1725987091134,-151.0,0.00019453,2]
[337719568,1725987091143,-1161.67,0.00019453,2]
[337719569,1725987091153,-1545.8,0.00019453,2]
[337719570,1725987091162,-228.22039525,0.00019453,2]
[337719571,1725987091172,-1031.96,0.00019453,2]
[337719572,1725987091182,-449.849696,0.00019453,2]
[337719573,1725987091192,-500.0,0.00019453,2]
[337719574,1725987091204,-1005.54,0.00019453,2]
[337719575,1725987091214,-449.849695,0.00019453,2]
[337719576,1725987091226,-801.25,0.00019453,2]
[337719577,1725987091236,-682.45,0.00019453,2]
[337719578,1725987091248,-1528.95,0.00019453,2]
[337719579,1725987091257,-686.42,0.00019453,2]
[337719580,1725987091267,-500.0,0.00019453,2]
[337719581,1725987091276,-500.0,0.00019453,2]
[337719582,1725987091286,-3196.6,0.00019453,2]
[337719583,1725987091295,-1720.38,0.00019453,2]
[337719584,1725987091304,-580.2,0.00019453,2]
[337719585,1725987091314,-644.54556731,0.00019453,2]
[337719586,1725987091323,-151.0,0.00019453,2]
[337719587,1725987091333,-2053.93,0.00019453,2]
[337719588,1725987091342,-500.0,0.00019453,2]
[337719589,1725987091351,-500.0,0.00019453,2]
[337719590,1725987091360,-1653.22,0.00019453,2]
[337719591,1725987091370,-2581.4,0.00019453,2]
[337719592,1725987091379,-500.0,0.00019453,2]
[337719593,1725987091388,-151.0,0.00019453,2]
[337719594,1725987091397,-500.0,0.00019453,2]
[337719595,1725987091407,-500.0,0.00019453,2]
[337719596,1725987091417,-582.87,0.00019453,2]
[337719597,1725987091426,-665.52,0.00019453,2]
[337719598,1725987091438,-500.0,0.00019453,2]
[337719599,1725987091450,-500.0,0.00019453,2]
[337719600,1725987091461,-624.21,0.00019453,2]
[337719601,1725987091471,-796.18,0.00019453,2]
[337719602,1725987091480,-500.0,0.00019453,2]
[337719603,1725987091490,-500.0,0.00019453,2]
[337719604,1725987091499,-1602.56,0.00019453,2]
[337719605,1725987091509,-1153.39,0.00019453,2]
[337719606,1725987091518,-979.44,0.00019453,2]
[337719607,1725987091527,-629.96,0.00019453,2]
[337719608,1725987091537,-931.29,0.00019453,2]
[337719609,1725987091546,-264.00645865,0.00019453,2]
[337719610,1725987091556,-500.0,0.00019453,2]
[337719611,1725987091566,-1387.23,0.00019453,2]
[337719612,1725987091576,-516.8,0.00019453,2]
[337719613,1725987091587,-1249.15,0.00019453,2]
[337719614,1725987091598,-500.0,0.00019453,2]
[337719615,1725987091607,-507.63,0.00019453,2]
[337719616,1725987091617,-3108.36,0.00019453,2]
[337719617,1725987091626,-1950.86,0.00019453,2]
[337719618,1725987091636,-513.58,0.00019453,2]
[337719619,1725987091646,-500.0,0.00019453,2]
[337719620,1725987091655,-1468.78,0.00019453,2]
[337719621,1725987091665,-4251.41,0.00019453,2]
[337719622,1725987091675,-500.0,0.00019453,2]
[337719623,1725987091685,-500.0,0.00019453,2]
[337719624,1725987091695,-500.0,0.00019453,2]
[337719625,1725987091705,-500.0,0.00019453,2]
[337719626,1725987091715,-500.0,0.00019453,2]
[337719627,1725987091725,-818.77,0.00019453,2]
[337719628,1725987091736,-500.0,0.00019453,2]
[337719629,1725987091746,-500.0,0.00019453,2]
[337719630,1725987091755,-547.21,0.00019453,2]
[337719631,1725987091765,-889.36,0.00019453,2]
[337719632,1725987091775,-500.0,0.00019453,2]
[337719633,1725987091784,-948.67,0.00019453,2]
[337719634,1725987091794,-653.85,0.00019453,2]
[337719635,1725987091803,-527.0,0.00019453,2]
[337719636,1725987091813,-1596.56,0.00019453,2]
[337719637,1725987091822,-626.02,0.00019453,2]
[337719638,1725987091831,-500.0,0.00019453,2]
[337719639,1725987091843,-500.0,0.00019453,2]
[337719640,1725987091852,-553.2,0.00019453,2]
[337719641,1725987091862,-848.19,0.00019453,2]
[337719642,1725987091872,-500.0,0.00019453,2]
[337719643,1725987091883,-882.16,0.00019453,2]
[337719645,1725987091893,-500.0,0.00019453,2]
[337719646,1725987091903,-500.0,0.00019453,2]
[337719647,1725987091912,-578.17,0.00019453,2]
[337719648,1725987091922,-841.44,0.00019453,2]
[337719649,1725987091933,-500.0,0.00019453,2]
[337719650,1725987091943,-642.34,0.00019453,2]
[337719651,1725987091953,-791.11,0.00019453,2]
[337719652,1725987091963,-519.19939007,0.00019453,2]
[337719653,1725987091973,-500.0,0.00019453,2]
[337719654,1725987091982,-1895.41,0.00019453,2]
[337719655,1725987091992,-500.0,0.00019453,2]
[337719656,1725987092002,-980.57,0.00019453,2]
[337719657,1725987092011,-500.0,0.00019453,2]
[337719658,1725987092020,-2400.44,0.00019453,2]
[337719659,1725987092030,-500.0,0.00019453,2]
[337719660,1725987092039,-1124.28,0.00019453,2]
[337719661,1725987092049,-672.56,0.00019453,2]
[337719662,1725987092059,-571.17,0.00019453,2]
[337719663,1725987092068,-493.48691968,0.00019453,2]
[337719664,1725987092077,-808.61,0.00019453,2]
[337719665,1725987092089,-500.0,0.00019453,2]
[337719666,1725987092107,-500.0,0.00019453,2]
[337719667,1725987092116,-1199.35,0.00019453,2]
[337719668,1725987092243,-500.0,0.00019453,2]
[337719669,1725987092253,-1033.55,0.00019453,2]
[337719670,1725987092264,-1786.34,0.00019453,2]
[337719671,1725987092274,-500.0,0.00019453,2]
[337719672,1725987092288,-857.51,0.00019453,2]
[337719673,1725987092298,-500.0,0.00019453,2]
[337719674,1725987092307,-500.0,0.00019453,2]
[337719675,1725987092317,-481.80863555,0.00019453,2]
[337719676,1725987092328,-500.0,0.00019453,2]
[337719677,1725987092341,-500.0,0.00019453,2]
[337719678,1725987092351,-742.91,0.00019453,2]
[337719679,1725987092360,-606.58,0.00019453,2]
[337719680,1725987092370,-500.0,0.00019453,2]
[337719681,1725987092380,-679.35,0.00019453,2]
[337719682,1725987092389,-520.53714537,0.00019453,2]
[337719683,1725987092400,-500.0,0.00019453,2]
[337719684,1725987092410,-451.64116362,0.00019455,2]
[337719685,1725987092420,-844.705938,0.00019455,2]
[337719686,1725987092430,-844.705948,0.00019455,2]
[337719687,1725987092439,-678.54,0.00019456,2]
[337719688,1725987092450,-1000.0,0.000195,2]
[337719689,1725987092461,-499.9999999,0.00019653,2]
[337719690,1725987092472,-4045.89695159,0.00019655,3]
[337719691,1725987092481,-1047.18,0.00019724,2]
[337719692,1725987092492,-357.21664514,0.00019725,2]
[337719693,1725987092503,-553.54,0.00019725,2]
[337719694,1725987092515,-2363.4,0.00019725,2]
[337719695,1725987092527,-977.86,0.00019725,2]
[337719696,1725987092538,-1813.25,0.00019725,2]
[337719697,1725987092548,-1983.67,0.00019725,2]
[337719698,1725987092558,-585.68,0.00019725,2]
[337719699,1725987092567,-2056.03,0.00019725,2]
[337719700,1725987092577,-1041.82,0.00019725,2]
[337719701,1725987092589,-200.0,0.00019725,2]
[337719702,1725987092598,-500.0,0.00019725,2]
[337719703,1725987092608,-890.94,0.00019725,2]
[337719704,1725987092618,-527.87425773,0.00019725,2]
[337719705,1725987092628,-500.0,0.00019725,2]
[337719706,1725987092638,-2908.31,0.00019725,2]
[337719707,1725987092648,-570.37,0.00019725,2]
[337719708,1725987092658,-43984.4,0.00019725,2]
[337719709,1725987092667,-500.0,0.00019725,2]
[337719710,1725987092677,-2135.99,0.00019725,2]
[337719711,1725987092686,-3517.34,0.00019725,2]
[337719712,1725987092696,-539.11,0.00019725,2]
[337719713,1725987092705,-2575.2,0.00019725,2]
[337719714,1725987092715,-7865.92,0.00019725,2]
[337719715,1725987092725,-500.0,0.00019725,2]
[337719716,1725987092735,-3508.18,0.00019725,2]
[337719717,1725987092744,-1299.19,0.00019725,2]
[337719718,1725987092754,-1213.25,0.00019725,2]
[337719719,1725987092763,-897.95,0.00019725,2]
[337719720,1725987092773,-2680.58,0.00019725,2]
[337719721,1725987092783,-500.0,0.00019725,2]
[337719722,1725987092793,-867.86,0.00019725,2]
[337719723,1725987092802,-539.4,0.00019725,2]
[337719724,1725987092812,-3969.43,0.00019725,2]
[337719725,1725987092822,-1187.95,0.00019725,2]
[337719726,1725987092832,-500.0,0.00019725,2]
[337719727,1725987092844,-8904.62,0.00019725,2]
[337719728,1725987092854,-500.0,0.00019725,2]
[337719729,1725987092863,-1301.09,0.00019725,2]
[337719730,1725987092872,-500.0,0.00019725,2]
[337719731,1725987092884,-1116.76,0.00019725,2]
[337719732,1725987092894,-2535.01,0.00019725,2]
[337719733,1725987092903,-500.0,0.00019725,2]
[337719734,1725987092914,-1737.23,0.00019725,2]
[337719735,1725987092924,-500.0,0.00019725,2]
[337719736,1725987092933,-1452.81,0.00019725,2]
[337719737,1725987092942,-500.0,0.00019725,2]
[337719738,1725987092954,-359.48454916,0.00019725,2]
[337719739,1725987092965,-500.0,0.00019725,2]
[337719740,1725987092974,-3779.0,0.00019725,2]
[337719741,1725987092983,-565.66,0.00019726,2]
[337719742,1725987092994,-920.25,0.00019726,2]
[337719743,1725987093004,-500.0,0.00019726,2]
[337719744,1725987093013,-500.0,0.00019726,2]
[337719745,1725987093023,-500.0,0.00019726,2]
[337719746,1725987093032,-500.0,0.00019726,2]
[337719747,1725987093042,-1099.81,0.00019726,2]
[337719748,1725987093051,-1604.71,0.00019726,2]
[337719749,1725987093062,-2210.6,0.00019726,2]
[337719750,1725987093073,-500.0,0.00019726,2]
[337719751,1725987093083,-1189.48,0.00019726,2]
[337719752,1725987093094,-663.24,0.00019726,2]
[337719753,1725987093104,-1038.53,0.00019726,2]
[337719754,1725987093115,-1169.08,0.00019726,2]
[337719755,1725987093124,-505.5,0.00019726,2]
[337719756,1725987093134,-1822.14,0.00019726,2]
[337719757,1725987093144,-720.07,0.00019726,2]
[337719758,1725987093154,-2913.8,0.00019726,2]
[337719759,1725987093164,-1955.94,0.00019726,2]
[337719760,1725987093174,-742.92,0.00019726,2]
[337719761,1725987093183,-500.0,0.00019726,2]
[337719762,1725987093193,-609.62,0.00019726,2]
[337719763,1725987093203,-1713.89,0.00019726,2]
[337719764,1725987093212,-500.0,0.00019726,2]
[337719765,1725987093222,-971.86,0.00019726,2]
[337719766,1725987093231,-2284.58,0.00019726,2]
[337719767,1725987093240,-1021.87,0.00019726,2]
[337719768,1725987093250,-792.09,0.00019726,2]
[337719769,1725987093259,-1816.79,0.00019726,2]
[337719770,1725987093269,-500.0,0.00019726,2]
[337719771,1725987093278,-720.94,0.00019726,2]
[337719772,1725987093288,-753.23,0.00019726,2]
[337719773,1725987093298,-1933.6,0.00019726,2]
[337719774,1725987093308,-1008.22,0.00019726,2]
[337719775,1725987093318,-1583.17,0.00019726,2]
[337719776,1725987093327,-500.0,0.00019726,2]
[337719777,1725987093338,-500.0,0.00019726,2]
[337719778,1725987093348,-500.0,0.00019726,2]
[337719779,1725987093358,-9481.22,0.00019726,2]
[337719780,1725987093368,-1938.09,0.00019726,2]
[337719781,1725987093378,-1806.64,0.00019726,2]
[337719782,1725987093388,-589.44,0.00019726,2]
[337719783,1725987093397,-500.0,0.00019726,2]
[337719784,1725987093407,-1240.8,0.00019726,2]
[337719785,1725987093417,-946.63,0.00019726,2]
[337719786,1725987093427,-38864.62,0.00019726,2]
[337719787,1725987093436,-500.0,0.00019726,2]
[337719788,1725987093446,-2013.95,0.00019726,2]
[337719789,1725987093456,-2044.37,0.00019726,2]
[337719790,1725987093466,-53987.64,0.00019726,2]
[337719791,1725987093476,-500.0,0.00019726,2]
[337719792,1725987093486,-4713.36,0.00019726,2]
[337719793,1725987093496,-535.49,0.00019726,2]
[337719794,1725987093506,-500.0,0.00019726,2]
[337719795,1725987093516,-965.38,0.00019726,2]
[337719796,1725987093526,-806.04,0.00019726,2]
[337719797,1725987093536,-500.0,0.00019726,2]
[337719798,1725987093546,-500.0,0.00019726,2]
[337719799,1725987093555,-2582.53,0.00019726,2]
[337719800,1725987093565,-677.86,0.00019726,2]
[337719801,1725987093575,-500.0,0.00019726,2]
[337719802,1725987093584,-771.86,0.00019726,2]
[337719803,1725987093598,-500.0,0.00019726,2]
[337719804,1725987093608,-1718.58,0.00019726,2]
[337719805,1725987093618,-1132.77,0.00019726,2]
[337719806,1725987093628,-2709.96,0.00019726,2]
[337719807,1725987093638,-652.93,0.00019726,2]
[337719808,1725987093649,-5158.88,0.00019726,2]
[337719809,1725987093659,-500.0,0.00019726,2]
[337719810,1725987093670,-1065.08,0.00019727,2]
[337719811,1725987093679,-262.79235903,0.00019727,2]
[337719812,1725987093689,-660.04,0.00019727,2]
[337719813,1725987093698,-500.0,0.00019727,2]
[337719814,1725987093708,-500.0,0.00019727,2]
[337719815,1725987093718,-1568.6,0.00019727,2]
[337719816,1725987093727,-792.17,0.00019727,2]
[337719817,1725987093738,-500.0,0.00019727,2]
[337719818,1725987093748,-904.46,0.00019727,2]
[337719819,1725987093757,-500.0,0.00019727,2]
[337719820,1725987093767,-625.22,0.00019727,2]
[337719821,1725987093777,-536.45,0.00019727,2]
[337719822,1725987093787,-500.0,0.00019727,2]
[337719823,1725987093797,-500.0,0.00019727,2]
[337719824,1725987093806,-502.6,0.00019727,2]
[337719825,1725987093816,-500.0,0.00019727,2]
[337719826,1725987093826,-1049.86,0.00019727,2]
[337719827,1725987093836,-1076.1,0.00019727,2]
[337719828,1725987093849,-500.0,0.00019727,2]
[337719829,1725987093860,-500.0,0.00019727,2]
[337719830,1725987093870,-500.0,0.00019727,2]
[337719831,1725987093883,-500.0,0.00019727,2]
[337719832,1725987093893,-500.0,0.00019727,2]
[337719833,1725987093903,-629.08,0.00019727,2]
[337719834,1725987093913,-712.42,0.00019727,2]
[337719835,1725987093924,-500.0,0.00019727,2]
[337719836,1725987093935,-500.0,0.00019727,2]
[337719837,1725987093945,-500.0,0.00019727,2]
[337719838,1725987093956,-500.0,0.00019727,2]
[337719839,1725987093966,-500.0,0.00019727,2]
[337719840,1725987093976,-852.74,0.00019727,2]
[337719841,1725987093986,-500.0,0.00019727,2]
[337719842,1725987093996,-500.0,0.00019727,2]